fUST/lending_fUST_20250326
["ID","MTS","AMOUNT","RATE_DAILY","PERIOD"]
[356709195,1743000633023,-572.00668415,0.00040322,5]
[356709196,1743000633035,-527.8925555,0.0004072,4]
[356709197,1743000633046,-504415.52058781,0.0004099,30]
[356709198,1743000633059,-322000.0,0.00040995,2]
[356709199,1743000633071,-1076.75356393,0.00041,120]
[356709200,1743000633083,-1359.21777559,0.00041,120]
[356709264,1743000637827,-508.81243057,0.00029108,2]
[356709267,1743000637839,-201.38707484,0.00029108,2]
[356709271,1743000637849,-156.31049459,0.000379,8]
[356709275,1743000637864,-270.59202945,0.000379,8]
[356709278,1743000637875,-3640.78222441,0.00041,120]
[356709282,1743000637886,-1000.0,0.00041095,120]
[356709285,1743000637897,-1000.0,0.00041095,120]
[356709288,1743000637907,-1000.0,0.00041095,120]
[356709291,1743000637918,-1000.0,0.00041095,120]
[356709293,1743000637928,-1000.0,0.00041095,120]
[356709295,1743000637938,-1000.0,0.00041095,120]
[356709297,1743000637948,-207.91745081,0.00041095,120]
[356709299,1743000637957,-500.0,0.00041095,120]
[356709301,1743000637967,-500.0,0.00041095,120]
[356709304,1743000637978,-500.0,0.00041095,120]
[356709306,1743000637988,-500.0,0.00041095,120]
[356709308,1743000637998,-500.0,0.00041095,120]
[356709310,1743000638008,-500.0,0.00041095,120]
[356709312,1743000638019,-409.5311469,0.00041095,120]
[356709314,1743000638030,-500.0,0.00041095,120]
[356709316,1743000638041,-500.0,0.00041095,120]
[356709318,1743000638051,-500.0,0.00041095,120]
[356709320,1743000638061,-500.0,0.00041095,120]
[356709322,1743000638071,-500.0,0.00041095,120]
[356709324,1743000638081,-576.15330973,0.00041095,120]
[356709326,1743000638091,-585.00963816,0.00041095,120]
[356709982,1743000644030,-400.0,0.00025437,2]
[356709984,1743000644040,-400.0,0.00028437,2]
[356709986,1743000644050,-426.9025238,0.00038314,8]
[356709988,1743000644059,-426.9025238,0.00038728,8]
[356709990,1743000644069,-426.9025238,0.00039141,8]
[356709992,1743000644078,-135.37207754,0.00039555,8]
[356709995,1743000644090,-291.53044626,0.00039555,8]
[356709997,1743000644101,-426.9025238,0.00039969,8]
[356709999,1743000644110,-168.33702994,0.00040383,8]
[356710003,1743000644146,-258.56549386,0.00040383,8]
[356710006,1743000644157,-426.9025238,0.00040797,8]
[356710008,1743000644174,-414.99036184,0.00041095,120]
[356710011,1743000644188,-1000.0,0.00041095,120]
[356710013,1743000644199,-1000.0,0.00041095,120]
[356710016,1743000644210,-1000.0,0.00041095,120]
[356710019,1743000644220,-1000.0,0.00041095,120]
[356710021,1743000644230,-1000.0,0.00041095,120]
[356710023,1743000644240,-1000.0,0.00041095,120]
[356710025,1743000644250,-1000.0,0.00041095,120]
[356710027,1743000644260,-1000.0,0.00041095,120]
[356710029,1743000644271,-1000.0,0.00041095,120]
[356710031,1743000644282,-1000.0,0.00041095,120]
[356710034,1743000644291,-1000.0,0.00041095,120]
[356710036,1743000644302,-1000.0,0.00041095,120]
[356710038,1743000644312,-1000.0,0.00041095,120]
[356710040,1743000644321,-1000.0,0.00041095,120]
[356710042,1743000644332,-1000.0,0.00041095,120]
[356710044,1743000644342,-1000.0,0.00041095,120]
[356710046,1743000644352,-1000.0,0.00041095,120]
[356710048,1743000644363,-1000.0,0.00041095,120]
[356710050,1743000644373,-1000.0,0.00041095,120]
[356710052,1743000644383,-366.52321074,0.00041095,120]
[356710054,1743000644393,-2161.79762064,0.00041119,2]
[356710056,1743000644403,-922.34909586,0.000412,120]
[356710058,1743000644412,-426.9025238,0.0004121,9]
[356710060,1743000644422,-427.89330619,0.00041211,2]
[356710063,1743000644435,-72.10669381,0.00041211,2]
[356710065,1743000644445,-426.9025238,0.00041624,9]
[356710067,1743000644459,-150.0,0.00042,120]
[356710069,1743000644468,-500.0,0.00042019,10]
[356710071,1743000644477,-426.9025238,0.00042038,9]
[356710073,1743000644488,-1062.99394739,0.00042303,83]
[356710075,1743000644499,-426.9025238,0.00042452,9]
[356710077,1743000644509,-1274.10161254,0.00042718,10]
[356710079,1743000644519,-1500.0,0.00042718,10]
[356710081,1743000644534,-1500.0,0.00042718,10]
[356710083,1743000644544,-1026.49045376,0.00042718,10]
[356710085,1743000644556,-42.7108979,0.00042718,7]
[356710281,1743000646530,-400.0,0.00031437,2]
[356710283,1743000646539,-400.0,0.00034437,2]
[356710285,1743000646549,-310.863,0.00037437,2]
[356710287,1743000646558,-1457.2891021,0.00042718,7]
[356710289,1743000646567,-1200.7274013,0.00042718,10]
[356710291,1743000646579,-299.2725987,0.00042718,10]
[356710293,1743000646588,-151.0,0.000428,14]
[356710295,1743000646598,-129.97161904,0.00042818,2]
[356710297,1743000646610,-719.49999995,0.00042818,2]
[356711598,1743001654185,-201.96899226,0.000123,2]
[356711599,1743001748114,-288.06839898,0.000123,2]
[356711600,1743001748169,-85.07299244,0.000123,2]
[356711625,1743001832252,-834.83451184,0.00022728,2]
[356711626,1743001832263,-160.0,0.00022728,2]
[356711627,1743001832273,-160.0,0.00022728,2]
[356711628,1743001832283,-418.40181814,0.00022747,2]
[356711629,1743001832292,-1572.61847601,0.00022958,2]
[356711630,1743001832305,-500.0,0.00022958,2]
[356711631,1743001832315,-23963.60328088,0.00024623,2]
[356711632,1743001832331,-433.93,0.00024623,2]
[356711870,1743001846207,-502.46671912,0.00024623,2]
[356711872,1743001846217,-264.04202399,0.00026795,2]
[356711874,1743001846227,-500.0,0.00026894,2]
[356711876,1743001846237,-500.0,0.00026894,2]
[356711878,1743001846246,-500.0,0.00026894,2]
[356711880,1743001846256,-362.68038189,0.00026894,2]
[356711965,1743001851839,208.65656725,0.0003,30]
[356711966,1743001890128,550.32820476,0.0003,30]
[356711968,1743002048100,2393.12108411,0.0003,30]
[356711969,1743002105456,395.88,0.0003,30]
[356711972,1743002837170,-198.84818064,0.00010859,2]
[356711973,1743002837192,-159.360805,0.00010959,2]
[356711974,1743002837217,-500.0,0.0001566,2]
[356711975,1743002837238,-175.05065575,0.00016137,2]
[356711976,1743002837262,-15.57889864,0.00016202,2]
[356711977,1743002838219,-484.42110136,0.00016202,2]
[356711978,1743002838241,-175.05065575,0.00016275,2]
[356711979,1743002838265,-163.40365454,0.00016413,2]
[356711980,1743002842117,-11.64700121,0.00016413,2]
[356711981,1743002842141,-461.1101483,0.000168,2]
[356711985,1743002904142,300.0,0.0003,120]
[356711986,1743002918408,300.0,0.00028,120]
[356711987,1743002928188,25179.20222221,0.00026,30]
[356711988,1743002963382,421.0,0.0003,120]
[356711989,1743002969146,-500.0,0.00015886,2]
[356711990,1743002969168,-563.44580585,0.00016161,2]
[356711991,1743002969190,-38.8898517,0.000168,2]
[356711992,1743002969211,-500.0,0.0001685,2]
[356711993,1743002969232,-500.0,0.00016884,2]
[356711994,1743002969254,-500.0,0.00016938,2]
[356711995,1743002969275,-160.0,0.00016962,2]
[356711996,1743002969295,-300.0,0.00016999,2]
[356711997,1743002969318,-250.0,0.00017,2]
[356711998,1743002969337,-17436.61494105,0.00017,2]
[356711999,1743002973113,-11402.04603857,0.00017,2]
[356712000,1743002973136,-300.0,0.0001738,2]
[356712001,1743002973158,-500.0,0.00017604,2]
[356712002,1743002973181,-50.87586616,0.00017741,2]
[356712003,1743002974116,-449.12413384,0.00017741,2]
[356712004,1743002974141,-420.0,0.00018567,2]
[356712005,1743002974163,-350.9249168,0.00018619,2]
[356712006,1743002982928,300.0,0.0003,120]
[356712034,1743003032251,-149.0750832,0.00018619,2]
[356712035,1743003032262,-3261.75197774,0.00018814,2]
[356712036,1743003032272,-231.03677093,0.0001903,2]
[356712037,1743003032282,-500.0,0.00019113,2]
[356712038,1743003032292,-500.0,0.0001913,2]
[356712039,1743003032301,-159.360805,0.00019178,2]
[356712040,1743003032311,-500.0,0.00019905,2]
[356712041,1743003032321,-300.0,0.00019968,2]
[356712042,1743003032331,-3181.87536314,0.00019969,2]
[356712044,1743003032408,-8676.19999538,0.00019969,2]
[356712092,1743003046255,-1246.11427798,0.000199,2]
[356712093,1743003046265,-8141.92464148,0.00019969,2]
[356712094,1743003046275,-150.12810693,0.0002,7]
[356712095,1743003046285,-500.0,0.00020132,2]
[356712096,1743003046297,-500.0,0.00020413,2]
[356712097,1743003046306,-1246.11427796,0.00020934,2]
[356712098,1743003046316,-500.0,0.00020995,2]
[356712099,1743003046325,-501.93897146,0.00020995,2]
[356712100,1743003046336,-500.0,0.00020995,2]
[356712101,1743003046347,-500.0,0.00021011,2]
[356712102,1743003046356,-500.0,0.00021277,2]
[356712103,1743003046366,-500.0,0.00021533,2]
[356712104,1743003046375,-500.0,0.00021568,2]
[356712105,1743003046385,-275.27627003,0.00021568,2]
[356712106,1743003046394,-572.38759014,0.00021568,2]
[356712107,1743003046404,-500.0,0.00021568,2]
[356712108,1743003046414,-500.0,0.00021568,2]
[356712109,1743003046424,-500.0,0.00021568,2]
[356712110,1743003046434,-500.0,0.00021568,2]
[356712111,1743003046445,-500.0,0.00021568,2]
[356712112,1743003046455,-500.0,0.00021568,2]
[356712113,1743003046465,-500.0,0.00021568,2]
[356712114,1743003046476,-500.0,0.00021568,2]
[356712115,1743003046486,-500.0,0.00021568,2]
[356712116,1743003046496,-500.0,0.00021568,2]
[356712117,1743003046506,-500.0,0.00021568,2]
[356712118,1743003046515,-500.0,0.00021568,2]
[356712119,1743003046525,-500.0,0.00021568,2]
[356712120,1743003046535,-500.0,0.00021568,2]
[356712121,1743003046544,-500.0,0.00021568,2]
[356712122,1743003046553,-500.0,0.00021568,2]
[356712123,1743003046563,-500.0,0.00021568,2]
[356712124,1743003046573,-500.0,0.00021568,2]
[356712125,1743003046583,-500.0,0.00021568,2]
[356712126,1743003046592,-500.0,0.00021568,2]
[356712127,1743003046601,-500.0,0.00021568,2]
[356712128,1743003046610,-500.0,0.00021568,2]
[356712129,1743003046619,-500.0,0.00021568,2]
[356712130,1743003046628,-500.0,0.00021568,2]
[356712131,1743003046638,-500.0,0.00021568,2]
[356712132,1743003046647,-500.0,0.00021568,2]
[356712133,1743003046656,-500.0,0.00021568,2]
[356712134,1743003046665,-500.0,0.00021568,2]
[356712135,1743003046675,-500.0,0.00021568,2]
[356712136,1743003046684,-500.0,0.00021568,2]
[356712137,1743003046694,-500.0,0.00021568,2]
[356712138,1743003046703,-500.0,0.00021568,2]
[356712139,1743003046713,-500.0,0.00021568,2]
[356712140,1743003046722,-500.0,0.00021568,2]
[356712141,1743003046731,-500.0,0.00021568,2]
[356712142,1743003046740,-500.0,0.00021568,2]
[356712143,1743003046749,-500.0,0.00021568,2]
[356712144,1743003046758,-500.0,0.00021568,2]
[356712145,1743003046767,-500.0,0.00021568,2]
[356712146,1743003046775,-500.0,0.00021568,2]
[356712147,1743003046784,-500.0,0.00021568,2]
[356712148,1743003046793,-500.0,0.00021568,2]
[356712149,1743003046802,-500.0,0.00021568,2]
[356712150,1743003046811,-500.0,0.00021568,2]
[356712151,1743003046820,-200.8687544,0.00021568,2]
[356712152,1743003046829,-500.0,0.00021568,2]
[356712153,1743003046839,-500.0,0.00021568,2]
[356712154,1743003046848,-500.0,0.00021568,2]
[356712155,1743003046858,-500.0,0.00021568,2]
[356712156,1743003046867,-3909.69942962,0.00021568,2]
[356712157,1743003046877,-9603.01200887,0.00021568,2]
[356712158,1743003046887,-500.0,0.00021569,2]
[356712159,1743003046898,-500.0,0.0002157,2]
[356712160,1743003046907,-500.0,0.00021573,2]
[356712161,1743003046917,-500.0,0.00021573,2]
[356712162,1743003046928,-491.43295118,0.00021573,2]
[356712163,1743003046940,-500.0,0.00021573,2]
[356712164,1743003046949,-500.0,0.00021573,2]
[356712165,1743003046959,-500.0,0.00021573,2]
[356712166,1743003046968,-500.0,0.00021573,2]
[356712167,1743003046978,-501.81999709,0.00021573,2]
[356712168,1743003046987,-500.0,0.00021573,2]
[356712169,1743003046996,-500.0,0.00021573,2]
[356712170,1743003047006,-500.0,0.00021573,2]
[356712171,1743003047015,-500.0,0.00021573,2]
[356712172,1743003047027,-867.74414965,0.0002159,2]
[356712173,1743003047036,-500.0,0.00021726,2]
[356712174,1743003047045,-420.0,0.00021744,2]
[356712175,1743003047055,-211.53677936,0.00021843,2]
[356712176,1743003047065,-1246.11427796,0.00021969,3]
[356712177,1743003047074,-15713.87766893,0.00022,2]
[356712178,1743003047083,-500.0,0.00022172,2]
[356712179,1743003047092,-355.45614265,0.00022173,2]
[356712180,1743003047102,-500.0,0.00022273,2]
[356712181,1743003047115,-500.0,0.00022273,2]
[356712182,1743003047125,-500.0,0.00022273,2]
[356712183,1743003047134,-500.0,0.00022306,2]
[356712184,1743003047144,-500.0,0.00022329,2]
[356712185,1743003047153,-745.4358749,0.00022402,2]
[356712186,1743003047163,-1265.30994958,0.00022919,2]
[356712187,1743003047173,-1246.11427796,0.00023003,3]
[356712188,1743003047182,-500.0,0.0002315,2]
[356712189,1743003047192,-355.45614265,0.00023185,2]
[356712190,1743003047202,-500.0,0.000232,2]
[356712191,1743003047221,-993.91449986,0.00023302,2]
[356712192,1743003047231,-231.03677093,0.00023409,2]
[356712193,1743003047241,-500.0,0.00023666,2]
[356712194,1743003047255,-587.0,0.00023677,2]
[356712195,1743003047265,-175.61897495,0.00023803,2]
[356712196,1743003047275,-1246.11427796,0.00024038,3]
[356712197,1743003047286,-355.45614265,0.00024197,2]
[356712198,1743003047295,-160.0,0.00024279,2]
[356712199,1743003047305,-5000.0,0.00024523,2]
[356712200,1743003047315,-242.42695226,0.00024657,3]
[356712201,1743003047324,-500.0,0.00024657,3]
[356712202,1743003047336,-500.0,0.00024657,2]
[356712203,1743003047347,-500.0,0.00024657,2]
[356712204,1743003047357,-209.98872,0.00024811,5]
[356712205,1743003047366,-24900.0,0.00024811,2]
[356712206,1743003047376,-596.762034,0.00024811,2]
[356712207,1743003047386,-668.6389175,0.00024815,2]
[356712208,1743003047396,-4458.88211561,0.00024831,2]
[356712209,1743003047406,-500.0,0.00024865,2]
[356712210,1743003047416,-500.0,0.00024873,2]
[356712211,1743003047426,-500.0,0.00024873,2]
[356712212,1743003047435,-487854.404569,0.000249,2]
[356712213,1743003047446,-493.35,0.00024931,3]
[356712214,1743003047456,-500.0,0.00024931,2]
[356712215,1743003047466,-508.2511079,0.00024931,2]
[356712216,1743003047475,-1246.11427796,0.00025072,4]
[356712217,1743003047485,-500.0,0.00025171,2]
[356712218,1743003047495,-500.0,0.00025205,2]
[356712219,1743003047505,-355.45614265,0.00025208,2]
[356712220,1743003047515,-500.0,0.00025452,2]
[356712221,1743003047525,-500.85233477,0.00025452,2]
[356712222,1743003047534,-505.81983538,0.00025452,2]
[356712223,1743003047544,-501.4527316,0.00025452,2]
[356712224,1743003047553,-604.88700106,0.00025452,2]
[356712225,1743003047563,-501.36844057,0.00025452,2]
[356712226,1743003047573,-500.0,0.00025479,2]
[356712227,1743003047583,-500.0,0.00025547,2]
[356712228,1743003047593,-500.0,0.00025547,2]
[356712229,1743003047602,-500.0,0.00025547,2]
[356712230,1743003047612,-500.0,0.00025547,2]
[356712231,1743003047622,-500.0,0.00025547,2]
[356712232,1743003047631,-501.11250677,0.00025547,2]
[356712233,1743003047641,-500.0,0.00025547,2]
[356712234,1743003047780,-500.0,0.00025547,2]
[356712235,1743003047790,-501.39394852,0.00025547,2]
[356712236,1743003047800,-504.17991158,0.00025547,2]
[356712237,1743003047809,-500.0,0.00025547,2]
[356712238,1743003047819,-500.0,0.00025547,2]
[356712239,1743003047828,-502.03001645,0.00025547,2]
[356712240,1743003047838,-500.0,0.00025547,2]
[356712241,1743003047847,-501.87927073,0.00025547,2]
[356712242,1743003047857,-500.91485582,0.00025547,2]
[356712243,1743003047867,-500.22168445,0.00025547,2]
[356712244,1743003047876,-500.91880435,0.00025547,2]
[356712245,1743003047885,-503.1521907,0.00025547,2]
[356712246,1743003047894,-500.0,0.00025547,2]
[356712247,1743003047904,-500.0,0.00025547,2]
[356712248,1743003047913,-500.85313924,0.00025547,2]
[356712249,1743003047922,-500.0,0.00025585,2]
[356712250,1743003047931,-500.0,0.00025744,2]
[356712251,1743003047941,-500.0,0.00025753,2]
[356712252,1743003047950,-439.0,0.00025783,2]
[356712253,1743003047959,-500.0,0.00025867,2]
[356712254,1743003047968,-500.0,0.00026027,2]
[356712255,1743003047978,-1246.11427796,0.00026107,4]
[356712256,1743003047987,-355.45614265,0.0002622,2]
[356712257,1743003047996,-718.41505981,0.00026242,2]
[356712258,1743003048006,-500.0,0.00026301,2]
[356712259,1743003048014,-150.0,0.0002632,2]
[356712260,1743003048023,-1915.0,0.0002632,2]
[356712261,1743003048032,-2263.0,0.0002632,2]
[356712262,1743003048041,-400.0,0.0002632,2]
[356712263,1743003048050,-128320.89799733,0.00026363,2]
[356712264,1743003048068,-4037.55417547,0.00026363,2]
[356712280,1743004026118,-262.03215103,0.00015786,2]
[356712281,1743004026146,-500.0,0.00017571,2]
[356712282,1743004026169,-298.381017,0.00017989,2]
[356712283,1743004026193,-127.12739566,0.00018255,2]
[356712284,1743004031162,-172.87260434,0.00018255,2]
[356712285,1743004031183,-12458.93820146,0.00018256,2]
[356712286,1743004031204,-503.67521591,0.00018263,2]
[356712287,1743004031225,-541.18956202,0.00019374,2]
[356712288,1743004031247,-500.0,0.00019474,2]
[356712289,1743004031272,-500.0,0.00019474,2]
[356712290,1743004031295,-500.0,0.00019474,2]
[356712291,1743004031317,-500.0,0.00019474,2]
[356712292,1743004031340,-500.0,0.00019474,2]
[356712293,1743004031362,-500.0,0.00019474,2]
[356712294,1743004031385,-500.0,0.00019474,2]
[356712295,1743004031410,-500.0,0.00019474,2]
[356712296,1743004031433,-500.0,0.00019474,2]
[356712297,1743004031456,-500.0,0.00019474,2]
[356712298,1743004031481,-378.48312927,0.00019474,2]
[356712299,1743004038091,-230.34471987,0.00019141,2]
[356712316,1743004232487,-170.70913,0.00010959,2]
[356712318,1743004232499,-269.65528013,0.00019141,2]
[356712320,1743004232511,-170.70913,0.00019178,2]
[356712322,1743004232522,-1730.35697327,0.00019475,2]
[356712323,1743004232533,-122.5694866,0.00019475,2]
[356712324,1743004232548,-377.4305134,0.00019475,2]
[356712325,1743004232560,-500.0,0.00019475,2]
[356712326,1743004232572,-500.0,0.00019475,2]
[356712327,1743004232585,-500.0,0.00019475,2]
[356712328,1743004232596,-500.0,0.00019475,2]
[356712329,1743004232610,-500.0,0.00019475,2]
[356712330,1743004232624,-500.0,0.00019475,2]
[356712331,1743004232636,-500.0,0.00019475,2]
[356712332,1743004232648,-500.0,0.00019475,2]
[356712333,1743004232662,-500.0,0.00019475,2]
[356712334,1743004232674,-500.0,0.00019475,2]
[356712335,1743004232688,-500.0,0.00019475,2]
[356712337,1743004232700,-500.0,0.00019475,2]
[356712339,1743004232711,-500.0,0.00019475,2]
[356712341,1743004232722,-202.96969805,0.00019475,2]
[356712343,1743004232732,-500.0,0.00019475,2]
[356712345,1743004232742,-500.0,0.00019475,2]
[356712347,1743004232753,-425.62828703,0.00019475,2]
[356712349,1743004232763,-500.0,0.00019475,2]
[356712351,1743004232775,-500.0,0.00019475,2]
[356712352,1743004232787,-500.0,0.00019475,2]
[356712353,1743004232799,-500.0,0.00019475,2]
[356712354,1743004232811,-500.0,0.00019475,2]
[356712355,1743004232823,-500.0,0.00019475,2]
[356712356,1743004232835,-500.0,0.00019475,2]
[356712357,1743004232846,-500.0,0.00019475,2]
[356712358,1743004232856,-500.0,0.00019475,2]
[356712359,1743004232868,-500.0,0.00019475,2]
[356712360,1743004232879,-500.0,0.00019475,2]
[356712361,1743004232892,-500.0,0.00019475,2]
[356712362,1743004232903,-500.0,0.00019475,2]
[356712363,1743004232915,-500.0,0.00019475,2]
[356712364,1743004232927,-500.0,0.00019475,2]
[356712365,1743004232940,-500.0,0.00019475,2]
[356712366,1743004232951,-500.0,0.00019475,2]
[356712367,1743004232962,-500.0,0.00019475,2]
[356712368,1743004232973,-500.0,0.00019475,2]
[356712369,1743004232983,-500.0,0.00019475,2]
[356712370,1743004232994,-500.0,0.00019475,2]
[356712371,1743004233005,-500.0,0.00019475,2]
[356712372,1743004233016,-500.0,0.00019475,2]
[356712373,1743004233027,-500.0,0.00019475,2]
[356712374,1743004233039,-500.0,0.00019475,2]
[356712375,1743004233051,-500.0,0.00019475,2]
[356712376,1743004233062,-500.0,0.00019475,2]
[356712377,1743004233073,-500.0,0.00019475,2]
[356712378,1743004233083,-500.0,0.00019475,2]
[356712379,1743004233094,-500.0,0.00019475,2]
[356712380,1743004233105,-500.0,0.00019475,2]
[356712381,1743004233116,-500.0,0.00019475,2]
[356712382,1743004233127,-500.0,0.00019475,2]
[356712383,1743004233138,-500.0,0.00019475,2]
[356712384,1743004233149,-500.0,0.00019475,2]
[356712385,1743004233160,-500.0,0.00019475,2]
[356712386,1743004233171,-500.0,0.00019475,2]
[356712387,1743004233182,-500.0,0.00019475,2]
[356712388,1743004233193,-500.0,0.00019475,2]
[356712389,1743004233204,-500.0,0.00019475,2]
[356712390,1743004233214,-500.0,0.00019475,2]
[356712391,1743004233225,-292.5628287,0.00019475,2]
[356712392,1743004233235,-500.0,0.00019475,2]
[356712393,1743004233246,-500.0,0.00019475,2]
[356712394,1743004233256,-500.0,0.00019475,2]
[356712395,1743004233267,-500.0,0.00019475,2]
[356712396,1743004233278,-500.0,0.00019475,2]
[356712397,1743004233289,-500.0,0.00019475,2]
[356712398,1743004233300,-500.0,0.00019475,2]
[356712399,1743004233310,-500.0,0.00019475,2]
[356712400,1743004233321,-500.0,0.00019475,2]
[356712401,1743004233332,-300.0,0.00019475,2]
[356712402,1743004233342,-24900.0,0.00019476,2]
[356712403,1743004233484,-500.0,0.0001984,2]
[356712404,1743004233497,-500.0,0.00019861,2]
[356712405,1743004233507,-160.0,0.00020792,2]
[356712406,1743004233516,-500.0,0.00020863,2]
[356712407,1743004233526,-5000.0,0.00020895,2]
[356712408,1743004233536,-500.0,0.00021893,2]
[356712409,1743004233545,-500.0,0.00021893,2]
[356712410,1743004233555,-500.0,0.00021893,2]
[356712411,1743004233565,-500.0,0.00021893,2]
[356712412,1743004233574,-500.0,0.00021893,2]
[356712413,1743004233583,-500.0,0.00021893,2]
[356712414,1743004233593,-421.72740306,0.00021893,2]
[356712415,1743004233603,-2500.0,0.00021909,2]
[356712416,1743004233618,-2500.0,0.00021918,2]
[356712417,1743004233628,-1489.42554514,0.00021918,2]
[356712418,1743004233637,-500.0,0.00022325,2]
[356712419,1743004233647,-500.0,0.00024444,2]
[356712420,1743004233657,-500.0,0.00024444,2]
[356712421,1743004233666,-511.96251015,0.00024657,3]
[356712422,1743004233676,-0.71002436,0.00024657,3]
[356712423,1743004233696,-499.28997564,0.00024657,3]
[356712424,1743004233706,-500.0,0.00024657,2]
[356712425,1743004233715,-181.6285119,0.00024811,2]
[356712426,1743004233725,-581.8793631,0.00024811,2]
[356712427,1743004233737,-2186.2335084,0.00024811,2]
[356712428,1743004233747,-111.28198761,0.00024931,3]
[356712443,1743004240810,-388.71801239,0.00024931,3]
[356712444,1743004240820,-112.556608,0.00024931,2]
[356712445,1743004240831,-388.81070841,0.00024931,2]
[356712446,1743004240840,-563.44580585,0.00024993,2]
[356712447,1743004240850,-53.14280077,0.00025204,2]
[356712479,1743004243496,-446.85719923,0.00025204,2]
[356712480,1743004243506,-192.69338902,0.00025204,2]
[356712481,1743004243516,-518.26903749,0.00025204,2]
[356712482,1743004243526,-500.0,0.00025205,3]
[356712483,1743004243537,-509.96460017,0.00025479,3]
[356712484,1743004243546,-500.0,0.00025615,2]
[356712485,1743004243555,-500.0,0.00026115,2]
[356712486,1743004243565,-418.40181814,0.00026127,2]
[356712487,1743004243574,-771.80451006,0.00026127,2]
[356712488,1743004243657,-63.03000178,0.00026127,2]
[356712489,1743004243666,-160.0,0.00026127,2]
[356712490,1743004243676,-1000.0,0.00026342,2]
[356712491,1743004243688,-168.70186889,0.00026624,2]
[356712492,1743004243698,-56.93608151,0.00026694,2]
[356712514,1743004246428,-443.06391849,0.00026694,2]
[356712515,1743004246439,-2972.58807706,0.00026791,2]
[356712516,1743004246449,-15437.60684959,0.00026881,2]
[356712518,1743004246645,-197478.95259741,0.00026881,2]
[356712519,1743004246661,-500.0,0.00026891,2]
[356712520,1743004246676,-1028.27574711,0.000269,4]
[356712521,1743004246686,-298.381017,0.00026983,2]
[356712522,1743004246697,-541.0,0.00027087,2]
[356712523,1743004246707,-1915.0,0.00027087,2]
[356712524,1743004246717,-2263.0,0.00027087,2]
[356712525,1743004246727,-535.06800472,0.00027105,2]
[356712526,1743004246737,-1000.0,0.00027373,2]
[356712527,1743004246747,-1000.0,0.00027373,2]
[356712528,1743004246757,-500.0,0.00027373,2]
[356712529,1743004246767,-1000.0,0.00027373,2]
[356712530,1743004246777,-500.0,0.00027373,2]
[356712531,1743004246787,-1000.0,0.00027373,2]
[356712532,1743004246796,-416.66816918,0.00027397,14]
[356712533,1743004246806,-170.70913,0.00027397,2]
[356712534,1743004246816,-1000.0,0.00027804,5]
[356712535,1743004246826,-468.50340024,0.0002846,2]
[356712536,1743004246836,-2200.0,0.00028676,2]
[356712537,1743004246846,-548.54882648,0.00028709,2]
[356712538,1743004246856,-465.17517001,0.00029884,2]
[356712539,1743004246866,-786.58512626,0.00029923,5]
[356712540,1743004246876,-541.0,0.00030087,2]
[356712541,1743004246886,-150.29,0.00033348,6]
[356712542,1743004246896,-500.0,0.00033348,6]
[356712543,1743004246906,-150.29,0.00033348,5]
[356712544,1743004246916,-150.29,0.00033348,6]
[356712545,1743004246926,-197.95,0.00033348,6]
[356712546,1743004246936,-150.29,0.00033348,6]
[356712547,1743004246948,-150.29,0.00033348,6]
[356712548,1743004246958,-500.0,0.00033348,6]